[Event "European Womens-ch 2025"]
[Site "Rhodes"]
[Date "2025.03.31"]
[Round "1.43"]
[White "Sieber, Fiona"]
[Black "Bhatia, Kanishka"]
[Result "1/2-1/2"]
[Annotator "RC"]
[ECO "C41"]
[WhiteElo "2276"]
[BlackElo "2012"]
[PlyCount "287"]
[EventDate "2025.03.29"]
[EventType "swiss"]
[EventCountry "GRE"]
[SourceTitle "playchess.com"]
[Source "ChessBase"]
[SourceQuality "1"]
[TimeControl "40/5400+30:1800+30"]

1. e4 {[%emt 0:00:03]} d6 {[%emt 0:00:10]} 2. d4 {[%emt 0:00:06]} Nf6 {[%emt 0:00:11]} 3. Nc3 {[%emt 0:00:08]} e5 {[%emt 0:00:17]} 4. Nf3 {[%emt 0:00:07]} Nbd7 {[%emt 0:00:10]} 5. Rg1 {[%emt 0:00:19]} exd4 {[%emt 0:02:54]} 6. Nxd4 {[%emt 0:01:47]} Nc5 {[%emt 0:01:32]} 7. Qe2 {[%emt 0:12:25]} Qe7 {[%emt 0:08:12]} 8. f3 {[%emt 0:02:43]} g6 {[%emt 0:04:33]} 9. g4 {[%emt 0:04:18]} c6 {[%emt 0:03:23]} 10. Bf4 {[%emt 0:04:50]} Ne6 {[%emt 0:04:02]} 11. Be3 {[%emt 0:03:58]} Bg7 {[%emt 0:02:48]} 12. O-O-O {[%emt 0:06:22]} Bd7 {[%emt 0:03:48]} 13. h4 {[%emt 0:08:50]} h5 {[%emt 0:05:35]} 14. Nf5 {[%emt 0:05:41]} gxf5 {[%emt 0:00:59]} 15. gxf5 {[%emt 0:00:03]} Bh6 {[%emt 0:05:38]} 16. fxe6 {[%emt 0:01:24]} Bxe3+ {[%emt 0:05:26]} 17. Qxe3 {[%emt 0:00:02]} Bxe6 {[%emt 0:00:13]} 18. e5 {[%emt 0:04:10]} Nd5 {[%emt 0:13:28]} 19. Nxd5 {[%emt 0:00:46]} Bxd5 {[%emt 0:00:14]} 20. c4 {[%emt 0:00:45]} Be6 {[%emt 0:00:32]} 21. exd6 {[%emt 0:04:12]} Qxh4 {[%emt 0:03:35]} 22. d7+ {[%emt 0:01:04]} Kd8 {[%emt 0:00:09]} 23. Qe5 {[%emt 0:02:02]} Rf8 {[%emt 0:00:46]} 24. Rg7 {[%emt 0:12:29]} Qe7 {[%emt 0:06:45]} 25. Qxh5 {[%emt 0:09:46]} Qf6 {[%emt 0:00:31]} 26. Rg2 {[%emt 0:01:50]} Qf4+ {[%emt 0:03:05]} 27. Rgd2 {[%emt 0:00:37]} Kc7 {[%emt 0:01:15]} 28. Kb1 {[%emt 0:01:07]} Qf5+ {[%emt 0:00:57]} 29. Qxf5 {[%emt 0:00:07]} Bxf5+ {[%emt 0:00:04]} 30. Bd3 {[%emt 0:03:53]} Bxd7 {[%emt 0:00:31]} 31. Kc2 {[%emt 0:00:28]} Be6 {[%emt 0:00:40]} 32. Kc3 {[%emt 0:00:54]} a5 {[%emt 0:05:09]} 33. f4 {[%emt 0:00:41]} Bg4 {[%emt 0:01:06]} 34. Rg1 {[%emt 0:00:59]} f5 {[%emt 0:00:45]} 35. Rh2 {[%emt 0:00:54]} Rad8 {[%emt 0:02:07]} 36. Re1 {[%emt 0:02:16]} Rfe8 {[%emt 0:01:27]} 37. Rh7+ {[%emt 0:02:20]} Kb6 {[%emt 0:01:19]} 38. Ree7 {[%emt 0:01:31]} Rxe7 {[%emt 0:00:10]} 39. Rxe7 {[%emt 0:00:02]} Rh8 {[%emt 0:00:38]} 40. Kd4 {[%emt 0:00:00]} Rh3 {[%emt 0:00:00]} 41. c5+ {[%emt 0:04:24]} Ka7 {[%emt 0:02:19]} 42. Re3 {[%emt 0:07:32]} Rh2 {[%emt 0:04:19]} 43. Ke5 {[%emt 0:07:25]} Rh8 {[%emt 0:02:20]} 44. Bc4 {[%emt 0:02:04]} Re8+ {[%emt 0:02:14]} 45. Be6 {[%emt 0:00:08]} Rd8 {[%emt 0:00:29]} 46. Rb3 {[%emt 0:01:49]} Kb8 {[%emt 0:03:24]} 47. Ra3 {[%emt 0:01:12]} Rd2 {[%emt 0:00:52]} 48. b3 {[%emt 0:02:25]} Re2+ {[%emt 0:01:03]} 49. Kf6 {[%emt 0:00:03]} Rf2 {[%emt 0:18:55]} 50. Ra4 {[%emt 0:00:27]} Kc7 {[%emt 0:00:47]} 51. Bxf5 {[%emt 0:00:42]} Be2 {[%emt 0:00:12]} 52. Re4 {[%emt 0:04:54]} Ba6 {[%emt 0:00:46]} 53. a4 {[%emt 0:03:18]} Rf3 {[%emt 0:00:18]} 54. Be6 {[%emt 0:01:11]} Bd3 {[%emt 0:01:02]} 55. Rd4 {[%emt 0:00:13]} Bc2 {[%emt 0:00:12]} 56. Rd7+ {[%emt 0:02:00]} Kb8 {[%emt 0:00:06]} 57. Rd8+ {[%emt 0:00:16]} Ka7 {[%emt 0:00:11]} 58. f5 {[%emt 0:01:05]} Bxf5 {[%emt 0:04:28]} 59. Bxf5 {[%emt 0:00:06]} Rxb3 {[%emt 0:00:07]} 60. Ke5 {[%emt 0:00:51]} Rc3 {[%emt 0:03:12]} 61. Kd4 {[%emt 0:00:14]} Ra3 {[%emt 0:00:08]} 62. Bc2 {[%emt 0:00:09]} Rg3 {[%emt 0:01:19]} 63. Kc4 {[%emt 0:00:53]} Rg2 {[%emt 0:00:52]} 64. Bb3 {[%emt 0:00:41]} Rg1 {[%emt 0:00:38]} 65. Bd1 {[%emt 0:00:43]} Re1 {[%emt 0:00:37]} 66. Rd7 {[%emt 0:01:03]} Re4+ {[%emt 0:00:27]} 67. Kd3 {[%emt 0:01:04]} Re1 {[%emt 0:00:39]} 68. Bc2 {[%emt 0:00:10]} Rg1 {[%emt 0:00:22]} 69. Ke4 {[%emt 0:00:45]} Re1+ {[%emt 0:00:23]} 70. Kf5 {[%emt 0:00:31]} Re2 {[%emt 0:00:29]} 71. Be4 {[%emt 0:00:17]} Kb8 {[%emt 0:00:32]} 72. Ke5 {[%emt 0:00:17]} Ra2 {[%emt 0:00:22]} 73. Rd4 {[%emt 0:00:05]} Kc7 {[%emt 0:00:17]} 74. Bf5 {[%emt 0:00:30]} Re2+ {[%emt 0:00:31]} 75. Kf6 {[%emt 0:00:31]} Re1 {[%emt 0:00:25]} 76. Rc4 {[%emt 0:00:53]} Rf1 {[%emt 0:00:56]} 77. Ke6 {[%emt 0:00:15]} Re1+ {[%emt 0:00:05]} 78. Be4 {[%emt 0:00:18]} Re3 {[%emt 0:00:12]} 79. Rd4 {[%emt 0:00:48]} Rc3 {[%emt 0:01:04]} 80. Rd7+ {[%emt 0:00:06]} Kc8 {[%emt 0:00:44]} 81. Kd6 {[%emt 0:00:45]} Rc4 {[%emt 0:00:19]} 82. Re7 {[%emt 0:00:54]} Rd4+ {[%emt 0:00:14]} 83. Ke5 {[%emt 0:00:03]} Rxa4 {[%emt 0:00:32]} 84. Bf5+ {[%emt 0:00:24]} Kb8 {[%emt 0:00:06]} 85. Re8+ {[%emt 0:00:16]} Ka7 {[%emt 0:00:04]} 86. Kd6 {[%emt 0:00:05]} Rd4+ {[%emt 0:01:10]} 87. Kc7 {[%emt 0:00:06]} Ka6 {[%emt 0:00:23]} 88. Re5 {[%emt 0:01:28]} a4 {[%emt 0:02:04]} 89. Bc8 {[%emt 0:01:30]} Rb4 {[%emt 0:00:26]} 90. Rh5 {[%emt 0:01:00]} a3 {[%emt 0:00:22]} 91. Rh3 {[%emt 0:00:20]} Kb5 {[%emt 0:00:29]} 92. Rxa3 {[%emt 0:00:16]} Kxc5 {[%emt 0:00:11]} 93. Bxb7 {[%emt 0:00:02]} Rh4 {[%emt 0:00:18]} 94. Bxc6 {[%emt 0:00:26]} Rh7+ {[%emt 0:00:07]} 95. Bd7 {[%emt 0:00:02]} Rh2 {[%emt 0:00:56]} 96. Ra5+ {[%emt 0:00:04]} Kb4 {[%emt 0:00:12]} 97. Rb5+ {[%emt 0:00:08]} Kc4 {[%emt 0:00:12]} 98. Kb6 {[%emt 0:00:38]} Rh6+ {[%emt 0:00:19]} 99. Bc6 {[%emt 0:00:02]} Rh8 {[%emt 0:00:14]} 100. Rg5 {[%emt 0:00:14]} Rb8+ {[%emt 0:00:18]} 101. Kc7 {[%emt 0:00:04]} Rf8 {[%emt 0:00:10]} 102. Bd5+ {[%emt 0:00:22]} Kd4 {[%emt 0:00:08]} 103. Be6 {[%emt 0:00:16]} Ra8 {[%emt 0:00:23]} 104. Rd5+ {[%emt 0:00:48]} Ke4 {[%emt 0:00:11]} 105. Rb5 {[%emt 0:00:44]} Ra7+ {[%emt 0:00:19]} 106. Kd6 {[%emt 0:00:05]} Ra6+ {[%emt 0:00:07]} 107. Ke7 {[%emt 0:00:03]} Ra7+ {[%emt 0:00:06]} 108. Kf6 {[%emt 0:00:02]} Kd4 {[%emt 0:00:45]} 109. Rd5+ {[%emt 0:00:08]} Ke4 {[%emt 0:00:15]} 110. Rd6 {[%emt 0:00:45]} Ra4 {[%emt 0:00:57]} 111. Bd5+ {[%emt 0:02:18]} Kf4 {[%emt 0:00:12]} 112. Rb6 {[%emt 0:00:22]} Rd4 {[%emt 0:00:20]} 113. Ke6 {[%emt 0:01:10]} Rd2 {[%emt 0:00:42]} 114. Rb4+ {[%emt 0:00:08]} Ke3 {[%emt 0:00:28]} 115. Ke5 {[%emt 0:00:01]} Rd3 {[%emt 0:00:44]} 116. Rh4 {[%emt 0:00:07]} Kd2 {[%emt 0:00:28]} 117. Be4 {[%emt 0:01:28]} Rd8 {[%emt 0:01:24]} 118. Rh3 {[%emt 0:00:01]} Re8+ {[%emt 0:00:54]} 119. Kd4 {[%emt 0:00:02]} Rd8+ {[%emt 0:00:06]} 120. Bd5 {[%emt 0:00:02]} Re8 {[%emt 0:00:20]} 121. Rh2+ {[%emt 0:00:23]} Re2 {[%emt 0:00:11]} 122. Rh8 {[%emt 0:00:34]} Re7 {[%emt 0:00:16]} 123. Bc6 {[%emt 0:00:11]} Re6 {[%emt 0:00:23]} 124. Rh2+ {[%emt 0:01:18]} Re2 {[%emt 0:00:07]} 125. Rh6 {[%emt 0:00:03]} Rf2 {[%emt 0:00:29]} 126. Be4 {[%emt 0:01:12]} Kc1 {[%emt 0:01:56]} 127. Rb6 {[%emt 0:00:58]} Rb2 {[%emt 0:00:38]} 128. Rc6+ {[%emt 0:00:05]} Kd2 {[%emt 0:00:17]} 129. Rc4 {[%emt 0:01:10]} Ke2 {[%emt 0:00:38]} 130. Ra4 {[%emt 0:01:02]} Kd2 {[%emt 0:00:10]} 131. Bd3 {[%emt 0:00:17]} Ke1 {[%emt 0:00:43]} 132. Ke3 {[%emt 0:00:41]} Re2+ {[%emt 0:00:07]} 133. Kf3 {[%emt 0:00:06]} Re7 {[%emt 0:00:08]} 134. Ra2 {[%emt 0:00:43]} Kd1 {[%emt 0:00:55]} 135. Be4 {[%emt 0:00:11]} Rc7 {[%emt 0:02:13]} 136. Ke3 {[%emt 0:00:29]} Kc1 {[%emt 0:02:35]} 137. Bd3 {[%emt 0:00:05]} Re7+ {[%emt 0:00:30]} 138. Kd4 {[%emt 0:00:07]} Kd1 {[%emt 0:01:06]} 139. Be4 {[%emt 0:02:58]} Rd7+ {[%emt 0:00:56]} 140. Ke3 {[%emt 0:00:44]} Kc1 {[%emt 0:00:27]} 141. Rc2+ {[%emt 0:00:06]} Kd1 {[%emt 0:00:16]} 142. Rb2 {[%emt 0:00:00]} Rc7 {[%emt 0:02:32]} 143. Rb1+ {[%emt 0:00:00]} Rc1 {[%emt 0:00:10]} 144. Rb5 {[%emt 0:00:00]} 1/2-1/2

[Event "European Womens-ch 2025"]
[Site "Rhodes"]
[Date "2025.03.31"]
[Round "1.44"]
[White "Valkova, Angelika"]
[Black "Avramidou, Anastasia"]
[Result "0-1"]
[Annotator "RC"]
[ECO "A57"]
[WhiteElo "2001"]
[BlackElo "2275"]
[PlyCount "64"]
[EventDate "2025.03.29"]
[EventType "swiss"]
[EventCountry "GRE"]
[SourceTitle "playchess.com"]
[Source "ChessBase"]
[SourceQuality "1"]
[TimeControl "40/5400+30:1800+30"]

1. d4 {[%emt 0:00:03]} Nf6 {[%emt 0:00:08]} 2. c4 {[%emt 0:00:05]} c5 {[%emt 0:00:10]} 3. d5 {[%emt 0:00:06]} b5 {[%emt 0:00:07]} 4. Qc2 {[%emt 0:00:14]} b4 {[%emt 0:00:08]} 5. a3 {[%emt 0:00:14]} a5 {[%emt 0:00:10]} 6. axb4 {[%emt 0:03:21]} cxb4 {[%emt 0:00:08]} 7. e4 {[%emt 0:00:07]} d6 {[%emt 0:00:08]} 8. c5 {[%emt 0:05:53]} dxc5 {[%emt 0:00:17]} 9. Nf3 {[%emt 0:09:01]} g6 {[%emt 0:21:36]} 10. Nbd2 {[%emt 0:04:51]} Bg7 {[%emt 0:03:16]} 11. Bb5+ {[%emt 0:03:41]} Bd7 {[%emt 0:05:08]} 12. Qxc5 {[%emt 0:02:27]} O-O {[%emt 0:02:32]} 13. O-O {[%emt 0:07:11]} e6 {[%emt 0:06:40]} 14. Bc4 {[%emt 0:12:44]} exd5 {[%emt 0:09:32]} 15. exd5 {[%emt 0:01:27]} Bf5 {[%emt 0:04:39]} 16. Ne5 {[%emt 0:11:18]} Nfd7 {[%emt 0:04:31]} 17. Nxd7 {[%emt 0:01:05]} Nxd7 {[%emt 0:00:06]} 18. Qb5 {[%emt 0:03:22]} Ne5 {[%emt 0:03:00]} 19. Be2 {[%emt 0:03:19]} Qc7 {[%emt 0:03:55]} 20. d6 {[%emt 0:08:31]} Qxd6 {[%emt 0:04:13]} 21. Rxa5 {[%emt 0:01:01]} Rab8 {[%emt 0:10:55]} 22. Qd5 {[%emt 0:03:53]} Qxd5 {[%emt 0:01:33]} 23. Rxd5 {[%emt 0:00:06]} Rfd8 {[%emt 0:00:22]} 24. Rxd8+ {[%emt 0:01:47]} Rxd8 {[%emt 0:00:06]} 25. Nc4 {[%emt 0:01:57]} Be6 {[%emt 0:04:31]} 26. Nxe5 {[%emt 0:13:52]} Bxe5 {[%emt 0:00:07]} 27. Bg5 {[%emt 0:01:44]} f6 {[%emt 0:03:59]} 28. Bc1 {[%emt 0:00:05]} Ra8 {[%emt 0:02:52]} 29. b3 {[%emt 0:01:00]} Bxb3 {[%emt 0:01:47]} 30. Bf3 {[%emt 0:00:03]} Rb8 {[%emt 0:02:48]} 31. Bd2 {[%emt 0:00:54]} Bc2 {[%emt 0:01:46]} 32. Bd5+ {[%emt 0:00:19]} Kg7 {[%emt 0:00:33]} 0-1

[Event "European Womens-ch 2025"]
[Site "Rhodes"]
[Date "2025.03.31"]
[Round "1.45"]
[White "Allahverdiyeva, Ayan"]
[Black "Kiousi, Panagiota"]
[Result "1-0"]
[Annotator "RC"]
[ECO "B76"]
[WhiteElo "2266"]
[BlackElo "1998"]
[PlyCount "145"]
[EventDate "2025.03.29"]
[EventType "swiss"]
[EventCountry "GRE"]
[SourceTitle "playchess.com"]
[Source "ChessBase"]
[SourceQuality "1"]
[TimeControl "40/5400+30:1800+30"]

1. e4 {[%emt 0:01:09]} c5 {[%emt 0:00:04]} 2. Nf3 {[%emt 0:00:03]} d6 {[%emt 0:00:05]} 3. d4 {[%emt 0:00:03]} cxd4 {[%emt 0:00:03]} 4. Nxd4 {[%emt 0:00:03]} Nf6 {[%emt 0:00:07]} 5. Nc3 {[%emt 0:00:02]} g6 {[%emt 0:00:11]} 6. Be3 {[%emt 0:00:13]} Bg7 {[%emt 0:00:04]} 7. f3 {[%emt 0:00:33]} Nc6 {[%emt 0:00:09]} 8. Qd2 {[%emt 0:00:05]} O-O {[%emt 0:00:04]} 9. O-O-O {[%emt 0:01:11]} d5 {[%emt 0:00:03]} 10. exd5 {[%emt 0:01:13]} Nxd5 {[%emt 0:00:12]} 11. Nxc6 {[%emt 0:00:05]} bxc6 {[%emt 0:00:05]} 12. Bd4 {[%emt 0:00:02]} e5 {[%emt 0:00:05]} 13. Bc5 {[%emt 0:00:36]} Be6 {[%emt 0:00:06]} 14. Ne4 {[%emt 0:03:09]} Re8 {[%emt 0:00:04]} 15. Bc4 {[%emt 0:01:21]} Qc7 {[%emt 0:00:04]} 16. Kb1 {[%emt 0:01:43]} Red8 {[%emt 0:04:44]} 17. Ng5 {[%emt 0:06:27]} Nf4 {[%emt 0:35:45]} 18. Nxe6 {[%emt 0:07:05]} Nxe6 {[%emt 0:00:19]} 19. Bd6 {[%emt 0:01:46]} Qc8 {[%emt 0:05:18]} 20. Qc1 {[%emt 0:09:34]} Nd4 {[%emt 0:07:24]} 21. Bc5 {[%emt 0:02:03]} Rb8 {[%emt 0:11:53]} 22. c3 {[%emt 0:04:29]} Qf5+ {[%emt 0:12:19]} 23. Bd3 {[%emt 0:24:41]} e4 {[%emt 0:00:05]} 24. cxd4 {[%emt 0:03:27]} exd3 {[%emt 0:01:17]} 25. Qc3 {[%emt 0:08:34]} Rd5 {[%emt 0:03:39]} 26. Rd2 {[%emt 0:05:32]} Rb5 {[%emt 0:04:18]} 27. Re1 {[%emt 0:14:52]} Qd7 {[%emt 0:02:11]} 28. Qa3 {[%emt 0:03:11]} Bxd4 {[%emt 0:01:10]} 29. Bxd4 {[%emt 0:00:08]} Rxd4 {[%emt 0:00:07]} 30. Re7 {[%emt 0:00:06]} Qd6 {[%emt 0:06:31]} 31. Qxd6 {[%emt 0:01:58]} Rxd6 {[%emt 0:00:06]} 32. Re3 {[%emt 0:00:17]} Rbd5 {[%emt 0:00:33]} 33. b3 {[%emt 0:00:13]} f5 {[%emt 0:04:10]} 34. g3 {[%emt 0:00:30]} g5 {[%emt 0:00:25]} 35. Kb2 {[%emt 0:00:53]} Kf7 {[%emt 0:03:25]} 36. Kc3 {[%emt 0:00:08]} Rc5+ {[%emt 0:00:04]} 37. Kb2 {[%emt 0:01:01]} Rcd5 {[%emt 0:00:10]} 38. b4 {[%emt 0:00:29]} a5 {[%emt 0:00:54]} 39. a3 {[%emt 0:00:06]} axb4 {[%emt 0:01:06]} 40. axb4 {[%emt 0:00:00]} Re6 {[%emt 0:00:00]} 41. Rxe6 {[%emt 0:04:10]} Kxe6 {[%emt 0:00:58]} 42. Kc3 {[%emt 0:03:07]} f4 {[%emt 0:13:12]} 43. gxf4 {[%emt 0:04:22]} gxf4 {[%emt 0:00:09]} 44. Rxd3 {[%emt 0:01:05]} Rh5 {[%emt 0:00:15]} 45. Rd2 {[%emt 0:00:10]} Rh3 {[%emt 0:00:21]} 46. Rf2 {[%emt 0:00:14]} Kd5 {[%emt 0:04:09]} 47. Kd3 {[%emt 0:00:01]} Rh5 {[%emt 0:00:27]} 48. Rd2 {[%emt 0:01:49]} Rh3 {[%emt 0:00:51]} 49. Kc3+ {[%emt 0:00:08]} Ke5 {[%emt 0:00:38]} 50. Re2+ {[%emt 0:00:08]} Kd5 {[%emt 0:00:19]} 51. Rf2 {[%emt 0:00:02]} Rh5 {[%emt 0:01:04]} 52. Rd2+ {[%emt 0:00:03]} Ke5 {[%emt 0:01:04]} 53. Kc4 {[%emt 0:00:06]} Rh3 {[%emt 0:00:32]} 54. Rf2 {[%emt 0:00:11]} Kd6 {[%emt 0:03:52]} 55. Kd4 {[%emt 0:00:13]} Rh5 {[%emt 0:01:07]} 56. Ke4 {[%emt 0:04:51]} Rh4 {[%emt 0:01:41]} 57. Rc2 {[%emt 0:02:16]} Rh5 {[%emt 0:02:50]} 58. Rg2 {[%emt 0:00:55]} Rb5 {[%emt 0:01:10]} 59. Rb2 {[%emt 0:00:04]} Kc7 {[%emt 0:01:18]} 60. Kxf4 {[%emt 0:06:21]} c5 {[%emt 0:00:05]} 61. Rc2 {[%emt 0:00:10]} Rxb4+ {[%emt 0:00:21]} 62. Ke5 {[%emt 0:00:11]} Kc6 {[%emt 0:01:52]} 63. f4 {[%emt 0:00:50]} Rd4 {[%emt 0:01:24]} 64. f5 {[%emt 0:02:05]} Rd5+ {[%emt 0:00:14]} 65. Ke6 {[%emt 0:00:07]} Rd6+ {[%emt 0:00:25]} 66. Ke7 {[%emt 0:00:17]} Rd7+ {[%emt 0:01:42]} 67. Ke8 {[%emt 0:00:04]} Rd4 {[%emt 0:01:28]} 68. f6 {[%emt 0:01:04]} Re4+ {[%emt 0:00:06]} 69. Kf8 {[%emt 0:01:04]} Kd6 {[%emt 0:00:51]} 70. f7 {[%emt 0:01:19]} Rf4 {[%emt 0:00:39]} 71. Re2 {[%emt 0:00:55]} Ra4 {[%emt 0:00:43]} 72. Rf2 {[%emt 0:01:44]} Ra7 {[%emt 0:00:46]} 73. Kg8 {[%emt 0:00:05]} 1-0

[Event "European Womens-ch 2025"]
[Site "Rhodes"]
[Date "2025.03.31"]
[Round "1.46"]
[White "Tirpan, Ceren"]
[Black "Krasteva, Beloslava"]
[Result "1/2-1/2"]
[Annotator "RC"]
[ECO "A13"]
[WhiteElo "1996"]
[BlackElo "2257"]
[PlyCount "116"]
[EventDate "2025.03.29"]
[EventType "swiss"]
[EventCountry "GRE"]
[SourceTitle "playchess.com"]
[Source "ChessBase"]
[SourceQuality "1"]
[TimeControl "40/5400+30:1800+30"]

1. c4 {[%emt 0:00:04]} e6 {[%emt 0:00:15]} 2. g3 {[%emt 0:00:10]} d5 {[%emt 0:00:07]} 3. Bg2 {[%emt 0:00:07]} d4 {[%emt 0:00:11]} 4. Nf3 {[%emt 0:00:06]} Nc6 {[%emt 0:00:17]} 5. O-O {[%emt 0:01:33]} Bc5 {[%emt 0:00:07]} 6. d3 {[%emt 0:00:16]} Nf6 {[%emt 0:00:16]} 7. Nbd2 {[%emt 0:00:48]} a5 {[%emt 0:00:37]} 8. Nb3 {[%emt 0:02:51]} Be7 {[%emt 0:00:23]} 9. e3 {[%emt 0:05:15]} dxe3 {[%emt 0:00:31]} 10. Bxe3 {[%emt 0:00:18]} Ng4 {[%emt 0:00:18]} 11. Bc5 {[%emt 0:04:04]} O-O {[%emt 0:00:39]} 12. d4 {[%emt 0:02:05]} a4 {[%emt 0:01:01]} 13. Bxe7 {[%emt 0:08:25]} Qxe7 {[%emt 0:00:05]} 14. Nc5 {[%emt 0:00:09]} e5 {[%emt 0:00:48]} 15. Re1 {[%emt 0:02:57]} Rd8 {[%emt 0:00:21]} 16. Nxa4 {[%emt 0:18:10]} Qb4 {[%emt 0:06:44]} 17. b3 {[%emt 0:00:24]} exd4 {[%emt 0:01:00]} 18. Qd2 {[%emt 0:05:47]} Qd6 {[%emt 0:21:45]} 19. Rad1 {[%emt 0:07:04]} h6 {[%emt 0:03:08]} 20. h3 {[%emt 0:06:46]} Nf6 {[%emt 0:01:36]} 21. c5 {[%emt 0:00:32]} Qf8 {[%emt 0:04:10]} 22. Ne5 {[%emt 0:00:27]} Nxe5 {[%emt 0:16:01]} 23. Rxe5 {[%emt 0:00:10]} Bd7 {[%emt 0:11:49]} 24. Bxb7 {[%emt 0:04:30]} Ra7 {[%emt 0:01:41]} 25. Qxd4 {[%emt 0:08:46]} Rxb7 {[%emt 0:08:26]} 26. c6 {[%emt 0:00:20]} Rbb8 {[%emt 0:03:58]} 27. cxd7 {[%emt 0:00:43]} Rxd7 {[%emt 0:00:06]} 28. Qa1 {[%emt 0:00:05]} Rbd8 {[%emt 0:03:16]} 29. Rxd7 {[%emt 0:05:33]} Rxd7 {[%emt 0:00:02]} 30. Qc3 {[%emt 0:00:31]} Qd8 {[%emt 0:06:33]} 31. Nc5 {[%emt 0:02:24]} Rd2 {[%emt 0:03:13]} 32. a4 {[%emt 0:00:41]} Qd6 {[%emt 0:01:10]} 33. Re1 {[%emt 0:02:19]} Ra2 {[%emt 0:03:02]} 34. Ne4 {[%emt 0:01:11]} Nxe4 {[%emt 0:00:28]} 35. Rxe4 {[%emt 0:00:08]} Qd5 {[%emt 0:02:32]} 36. Rd4 {[%emt 0:01:05]} Qe6 {[%emt 0:01:13]} 37. Rd8+ {[%emt 0:00:23]} Kh7 {[%emt 0:00:02]} 38. Qd3+ {[%emt 0:00:50]} f5 {[%emt 0:00:18]} 39. Kg2 {[%emt 0:05:30]} Rb2 {[%emt 0:01:08]} 40. Rb8 {[%emt 0:00:00]} Qc6+ {[%emt 0:00:00]} 41. Qf3 {[%emt 0:04:40]} Qc2 {[%emt 0:03:28]} 42. g4 {[%emt 0:04:27]} fxg4 {[%emt 0:02:52]} 43. hxg4 {[%emt 0:00:09]} Qg6 {[%emt 0:06:38]} 44. Qf5 {[%emt 0:01:28]} Qxf5 {[%emt 0:01:57]} 45. gxf5 {[%emt 0:00:10]} c5 {[%emt 0:04:24]} 46. Rb5 {[%emt 0:02:55]} Kg8 {[%emt 0:03:26]} 47. Kg3 {[%emt 0:05:45]} Kf7 {[%emt 0:00:42]} 48. f3 {[%emt 0:00:15]} Rc2 {[%emt 0:01:37]} 49. a5 {[%emt 0:03:40]} c4 {[%emt 0:02:59]} 50. bxc4 {[%emt 0:00:08]} Rxc4 {[%emt 0:00:12]} 51. a6 {[%emt 0:00:48]} Ra4 {[%emt 0:00:27]} 52. Rb6 {[%emt 0:00:05]} Ke7 {[%emt 0:01:56]} 53. f4 {[%emt 0:05:06]} Ra3+ {[%emt 0:00:24]} 54. Kg4 {[%emt 0:00:12]} Kf7 {[%emt 0:00:49]} 55. Rb7+ {[%emt 0:03:09]} Kf6 {[%emt 0:00:06]} 56. a7 {[%emt 0:00:05]} Ra2 {[%emt 0:00:56]} 57. Rb6+ {[%emt 0:02:50]} Kf7 {[%emt 0:00:04]} 58. Rb7+ {[%emt 0:00:04]} Kf6 {[%emt 0:00:04]} 1/2-1/2